[Event "13th All African Mixed Team Rapid-ch 202"]
[Site "Accra"]
[Date "2024.03.09"]
[Round "4.13"]
[White "Fomevor, Cephas Clinton"]
[Black "Wanyama, Harold"]
[Result "0-1"]
[ECO "D35"]
[WhiteElo "1887"]
[BlackElo "2226"]
[Annotator "TA"]
[PlyCount "88"]
[EventDate "2024.03.07"]
[EventType "rapid"]
[EventCountry "GHA"]
[SourceTitle "playchess.com"]
[Source "ChessBase"]
[SourceQuality "1"]
[TimeControl "900+10"]

{[%evp 14,88,12,2,37,29,42,18,31,21,37,43,65,56,63,30,28,22,96,0,41,27,30,31,32,34,41,24,37,27,72,46,43,7,19,14,24,14,14,11,49,-22,56,-21,0,0,22,-59,-66,-54,-44,-130,-124,-131,-120,-133,-137,-158,-143,-169,-160,-184,-168,-258,-230,-229,-214,-251,-161,-233,-217,-263,-265,-288,-288,-402,-401]} 1. d4 {[%emt 0:00:03]} d5 {[%emt 0:00:02]} 2. c4 {[%emt 0:00:02]} e6 {[%emt 0:00:03]} 3. cxd5 {[%emt 0:00:02]} exd5 {[%emt 0:00:02]} 4. Nc3 {[%emt 0:00:02]} c6 {[%emt 0:00:02]} 5. Nf3 {[%emt 0:00:02]} Bf5 {[%emt 0:00:04]} 6. Bf4 {[%emt 0:00:15]} Nf6 {[%emt 0:00:05]} 7. e3 {[%emt 0:00:03]} Qb6 {[%emt 0:00:12]} 8. Qc1 {[%emt 0:01:59]} Na6 {[%emt 0:00:50]} 9. a3 {[%emt 0:00:49] Gegen Nb4 gerichtet.} Be7 {[%emt 0:00:46]} 10. Be2 {[%emt 0:00:04]} O-O {[%emt 0:00:06] Die Stellung ist ausgeglichen.} 11. O-O {[%emt 0:00:03]} Rac8 {[%emt 0:00:06]} 12. b4 {[%emt 0:00:09]} Nb8 {[%emt 0:00:14]} 13. Na4 {[%emt 0:00:22]} Qd8 {[%emt 0:00:03]} 14. Nc5 {[%emt 0:00:06]} b6 {[%emt 0:00:12]} 15. Nd3 {[%emt 0:01:25]} Ne4 {[%emt 0:00:09]} (15... Nbd7 $11 {bleibt in der Remisbreite.}) 16. Qb2 {[%emt 0:00:37]} (16. Bxb8 $16 {Droht stark Be5.} Rxb8 17. Nde5 (17. Qxc6 Rc8 $11)) 16... Bf6 {[%emt 0:00:23]} 17. Be5 {[%emt 0:01:35]} Nd7 {[%emt 0:00:14]} 18. Bxf6 {[%emt 0:00:49]} Qxf6 {[%emt 0:00:03]} 19. Rac1 {[%emt 0:00:56]} Rfe8 {[%emt 0:00:45]} 20. Qb3 {[%emt 0:02:19]} Bg4 {[%emt 0:00:42]} 21. Rfd1 {[%emt 0:00:14]} g5 {[%emt 0:02:04]} 22. a4 {[%emt 0:01:36]} Be6 {[%emt 0:00:24]} 23. Qb2 {[%emt 0:02:43]} c5 {[%emt 0:01:41]} 24. bxc5 {[%emt 0:00:20]} bxc5 {[%emt 0:00:03]} 25. dxc5 {[%emt 0:00:06] [#] Schwarz muss nun Qxf6 beachten.} Qxb2 {[%emt 0:00:04]} 26. Nxb2 {[%emt 0:00:01] Und c6 würde nun gewinnen.} Ndxc5 {[%emt 0:00:08]} 27. Bb5 {[%emt 0:00:17]} (27. Nd4 $14) 27... Red8 {[%emt 0:00:18]} ({Günstiger ist} 27... Nb3 $1 $11 28. Bxe8 Nxc1 (28... Rxc1 29. Rxc1 Nxc1 30. Nd4 $17)) 28. Ne5 {[%emt 0:00:38]} (28. Nd4 $14) 28... a6 {[%emt 0:00:08]} 29. Bf1 {[%emt 0:01:09]} f6 {[%emt 0:00:14]} 30. Ned3 {[%emt 0:00:04]} (30. Nf3 $11) 30... Nb3 $15 {[%emt 0:00:05]} 31. Rxc8 {[%emt 0:00:08]} Rxc8 {[%emt 0:00:01]} 32. Nb4 {[%emt 0:01:32] [#] Wehrt Rc2 ab} ({Vorzuziehen ist} 32. a5 $1 $15) 32... Nc3 $1 $36 {[%emt 0:00:52][%mdl 2048] Schwarz bestimmt, wo es lang geht.} 33. Re1 {[%emt 0:00:00]} ({Viel schwächer wäre} 33. Bxa6 Rb8 34. Nc6 (34. Rd3 $2 Ne2+ 35. Kf1 Rxb4 $19) 34... Nxd1 35. Nxd1 Ra8 $19) 33... a5 {[%emt 0:00:18]} 34. N4d3 {[%emt 0:00:00]} Kf7 {[%emt 0:00:20]} 35. h3 {[%emt 0:00:00]} Bd7 {[%emt 0:00:07] Schwarz steht deutlich aktiver.} 36. f4 {[%emt 0:00:12]} h6 {[%emt 0:00:13]} 37. fxg5 {[%emt 0:00:02]} hxg5 {[%emt 0:00:02]} ({Und nicht} 37... Bxa4 38. Nxa4 (38. gxh6 Bc6 $11) 38... Nxa4 39. gxh6 $14) 38. Kh2 {[%emt 0:00:18]} (38. h4 {kämpft weiter.}) 38... Nxa4 {[%emt 0:00:15]} 39. Nxa4 {[%emt 0:00:13]} Bxa4 {[%emt 0:00:03]} 40. e4 {[%emt 0:00:14]} dxe4 {[%emt 0:00:23]} 41. Rxe4 {[%emt 0:00:05]} (41. Nb2 {ist wohl besser.}) 41... Bd7 $19 {[%emt 0:00:01]} 42. Re3 {[%emt 0:00:22]} a4 {[%emt 0:00:06]} 43. Nb4 {[%emt 0:00:03]} Be6 {[%emt 0:00:18]} 44. Bb5 {[%emt 0:00:20]} Rb8 {[%emt 0:00:28] Gewichteter Fehlerwert: Weiß=0.31/Schwarz=0.20 (präzise) .  Fehler:       	Weiß=7     	Schwarz=2     Ungenau:       	Weiß=4     	Schwarz=4     OK:         	Weiß=8     	Schwarz=11    Bester:       	---       	Schwarz=2     Stark:        	---       	Schwarz=1} 0-1

[Event "13th All African Mixed Team Rapid-ch 202"]
[Site "Accra"]
[Date "2024.03.09"]
[Round "4.14"]
[White "Nakabo, Peninah"]
[Black "Gertrude Banini"]
[Result "1-0"]
[ECO "B12"]
[WhiteElo "1836"]
[BlackElo "1681"]
[Annotator "NA RC"]
[PlyCount "93"]
[EventDate "2024.03.07"]
[EventType "rapid"]
[EventCountry "GHA"]
[SourceTitle "playchess.com"]
[Source "ChessBase"]
[SourceQuality "1"]
[TimeControl "900+10"]

1. e4 {[%emt 0:00:04]} c6 {[%emt 0:00:09]} 2. d4 {[%emt 0:00:05]} d5 {[%emt 0:00:01]} 3. f3 {[%emt 0:00:04]} dxe4 {[%emt 0:00:05]} 4. fxe4 {[%emt 0:00:03]} e5 {[%emt 0:00:26]} 5. c3 {[%emt 0:00:04]} Qh4+ {[%emt 0:01:34]} 6. Kd2 {[%emt 0:00:31]} Qxe4 {[%emt 0:00:16]} 7. Qe2 {[%emt 0:00:13]} Qxe2+ {[%emt 0:00:18]} 8. Bxe2 {[%emt 0:00:09]} exd4 {[%emt 0:00:16]} 9. cxd4 {[%emt 0:00:02]} Bb4+ {[%emt 0:00:17]} 10. Nc3 {[%emt 0:00:06]} Nf6 {[%emt 0:00:15]} 11. Bd3 {[%emt 0:00:18]} O-O {[%emt 0:00:28]} 12. Nf3 {[%emt 0:00:04]} Nbd7 {[%emt 0:00:28]} 13. Kc2 {[%emt 0:00:15]} c5 {[%emt 0:00:37]} 14. a3 {[%emt 0:00:17]} Bxc3 {[%emt 0:00:35]} 15. bxc3 {[%emt 0:00:28]} cxd4 {[%emt 0:00:29]} 16. Nxd4 {[%emt 0:00:08]} Nc5 {[%emt 0:00:28]} 17. Bg5 {[%emt 0:03:01]} Ng4 {[%emt 0:01:02]} 18. Be2 {[%emt 0:02:20]} Nf2 {[%emt 0:00:50]} 19. Be7 {[%emt 0:01:37]} Nce4 {[%emt 0:01:24]} 20. Bxf8 {[%emt 0:00:58]} Nxh1 {[%emt 0:00:27]} 21. Bxg7 {[%emt 0:00:27]} Kxg7 {[%emt 0:00:08]} 22. Rxh1 {[%emt 0:00:05]} Bd7 {[%emt 0:00:20]} 23. Bd3 {[%emt 0:00:55]} Nf2 {[%emt 0:00:54]} 24. Rf1 {[%emt 0:01:38]} Nxd3 {[%emt 0:00:21]} 25. Kxd3 {[%emt 0:00:03]} Re8 {[%emt 0:00:34]} 26. Kd2 {[%emt 0:00:52]} Re5 {[%emt 0:00:36]} 27. Re1 {[%emt 0:00:29]} Rxe1 {[%emt 0:00:15]} 28. Kxe1 {[%emt 0:00:02]} Kf6 {[%emt 0:00:03]} 29. Kf2 {[%emt 0:00:06]} Ke5 {[%emt 0:00:13]} 30. Nf3+ {[%emt 0:00:09]} Kf4 {[%emt 0:00:48]} 31. g3+ {[%emt 0:00:09]} Kf5 {[%emt 0:00:14]} 32. Ke3 {[%emt 0:00:41]} a6 {[%emt 0:00:08]} 33. g4+ {[%emt 0:00:17]} Kf6 {[%emt 0:00:16]} 34. Kf4 {[%emt 0:00:07]} h6 {[%emt 0:00:40]} 35. h4 {[%emt 0:00:06]} Bc6 {[%emt 0:00:30]} 36. g5+ {[%emt 0:00:09]} hxg5+ {[%emt 0:00:02]} 37. hxg5+ {[%emt 0:00:01]} Ke6 {[%emt 0:00:59]} 38. Nd4+ {[%emt 0:00:00]} Ke7 {[%emt 0:00:36]} 39. Nxc6+ {[%emt 0:00:00]} bxc6 {[%emt 0:00:07]} 40. Ke5 {[%emt 0:00:00]} c5 {[%emt 0:00:20]} 41. c4 {[%emt 0:00:00]} Kf8 {[%emt 0:00:32]} 42. Kd6 {[%emt 0:00:00]} Kg7 {[%emt 0:00:02]} 43. Kxc5 {[%emt 0:00:00]} Kg6 {[%emt 0:00:01]} 44. Kb6 {[%emt 0:00:00]} Kxg5 {[%emt 0:00:02]} 45. c5 {[%emt 0:00:00]} f5 {[%emt 0:00:06]} 46. c6 {[%emt 0:00:01]} f4 {[%emt 0:00:02]} 47. c7 {[%emt 0:00:03]} 1-0

[Event "13th All African Mixed Team Rapid-ch 202"]
[Site "Accra"]
[Date "2024.03.09"]
[Round "4.15"]
[White "Oluka Robert Mcligeyo"]
[Black "Frempong-Smart Daniel"]
[Result "1/2-1/2"]
[ECO "B04"]
[WhiteElo "2041"]
[BlackElo "1877"]
[Annotator "RC"]
[PlyCount "59"]
[EventDate "2024.03.07"]
[EventType "rapid"]
[EventCountry "GHA"]
[SourceTitle "playchess.com"]
[Source "ChessBase"]
[SourceQuality "1"]
[TimeControl "900+10"]

1. e4 {[%emt 0:04:00]} Nf6 {[%emt 0:00:05]} 2. e5 {[%emt 0:00:01]} Nd5 {[%emt 0:00:03]} 3. d4 {[%emt 0:00:02]} d6 {[%emt 0:00:01]} 4. Nf3 {[%emt 0:00:00]} dxe5 {[%emt 0:00:02]} 5. Nxe5 {[%emt 0:00:01]} c6 {[%emt 0:00:01]} 6. Bc4 {[%emt 0:00:02]} Be6 {[%emt 0:00:11]} 7. O-O {[%emt 0:00:15]} g6 {[%emt 0:00:02]} 8. c3 {[%emt 0:00:11]} Bg7 {[%emt 0:00:02]} 9. Qe2 {[%emt 0:00:15]} O-O {[%emt 0:00:10]} 10. Bg5 {[%emt 0:01:54]} Nd7 {[%emt 0:01:16]} 11. Nd2 {[%emt 0:00:55]} Nxe5 {[%emt 0:02:39]} 12. dxe5 {[%emt 0:00:29]} h6 {[%emt 0:00:09]} 13. Be3 {[%emt 0:01:01]} Nxe3 {[%emt 0:00:07]} 14. Qxe3 {[%emt 0:00:03]} Bxc4 {[%emt 0:00:48]} 15. Nxc4 {[%emt 0:08:31]} Qd5 {[%emt 0:00:06]} 16. b3 {[%emt 0:00:00]} Rfd8 {[%emt 0:04:01]} 17. Rfe1 {[%emt 0:00:00]} b6 {[%emt 0:00:08]} 18. Rac1 {[%emt 0:00:00]} Rac8 {[%emt 0:00:47]} 19. g3 {[%emt 0:00:00]} c5 {[%emt 0:01:12]} 20. Qe2 {[%emt 0:00:00]} Qd3 {[%emt 0:00:14]} 21. e6 {[%emt 0:00:00]} Qxe2 {[%emt 0:00:33]} 22. exf7+ {[%emt 0:00:00]} Kxf7 {[%emt 0:00:02]} 23. Rxe2 {[%emt 0:00:00]} Rd3 {[%emt 0:00:34]} 24. Ne5+ {[%emt 0:00:00]} Bxe5 {[%emt 0:00:02]} 25. Rxe5 {[%emt 0:00:00]} Rcd8 {[%emt 0:00:02]} 26. Rc2 {[%emt 0:00:12]} Rd2 {[%emt 0:00:09]} 27. Re2 {[%emt 0:00:13]} Rxe2 {[%emt 0:00:14]} 28. Rxe2 {[%emt 0:00:01]} Rd3 {[%emt 0:00:04]} 29. c4 {[%emt 0:00:15]} Kf6 {[%emt 0:00:25]} 30. f4 {[%emt 0:00:00]} 1/2-1/2

[Event "13th All African Mixed Team Rapid-ch 202"]
[Site "Accra"]
[Date "2024.03.09"]
[Round "4.16"]
[White "Benson, Maud"]
[Black "Mongeli, Sasha"]
[Result "1/2-1/2"]
[ECO "D78"]
[WhiteElo "1664"]
[BlackElo "1858"]
[Annotator "NA RC"]
[PlyCount "136"]
[EventDate "2024.03.07"]
[EventType "rapid"]
[EventCountry "GHA"]
[SourceTitle "playchess.com"]
[Source "ChessBase"]
[SourceQuality "1"]
[TimeControl "900+10"]

1. d4 {[%emt 0:15:20]} d5 {[%emt 0:00:15]} 2. Nf3 {[%emt 0:00:00]} c6 {[%emt 0:00:10]} 3. g3 {[%emt 0:00:00]} Nf6 {[%emt 0:00:07]} 4. Bg2 {[%emt 0:00:00]} g6 {[%emt 0:00:03]} 5. O-O {[%emt 0:00:00]} Bg7 {[%emt 0:00:02]} 6. c4 {[%emt 0:00:00]} O-O {[%emt 0:00:10]} 7. Nc3 {[%emt 0:00:00]} h6 {[%emt 0:00:57] D78: Fianchetto Grünfeld: 6 0-0 c6.} 8. Re1 {[%emt 0:00:00]} Nbd7 {[%emt 0:02:12]} 9. Qb3 {[%emt 0:00:00]} dxc4 {[%emt 0:00:35]} 10. Qxc4 {[%emt 0:00:00]} Nb6 {[%emt 0:00:14]} 11. Qd3 {[%emt 0:00:00]} Re8 {[%emt 0:00:16]} 12. Rd1 {[%emt 0:00:00]} Be6 {[%emt 0:01:37]} 13. e4 {[%emt 0:00:00]} Qc8 {[%emt 0:00:50]} 14. Bf4 {[%emt 0:00:00]} Bh3 {[%emt 0:02:06]} 15. Be5 {[%emt 0:00:00]} Bxg2 {[%emt 0:00:44]} 16. Kxg2 {[%emt 0:00:00]} Nbd7 {[%emt 0:00:05]} 17. Rac1 {[%emt 0:00:00]} Qd8 {[%emt 0:00:35]} 18. d5 {[%emt 0:00:00]} Nxe5 {[%emt 0:01:00]} 19. Nxe5 {[%emt 0:00:00]} cxd5 {[%emt 0:00:40]} 20. Nxd5 {[%emt 0:00:00]} Nxd5 {[%emt 0:00:25]} 21. Qxd5 {[%emt 0:00:09]} Qxd5 {[%emt 0:01:34]} 22. Rxd5 {[%emt 0:00:04]} e6 {[%emt 0:00:08]} 23. Rb5 {[%emt 0:02:29]} a6 {[%emt 0:00:06]} 24. Rxb7 {[%emt 0:00:24]} Bxe5 {[%emt 0:00:04]} 25. f4 {[%emt 0:00:01]} Rab8 {[%emt 0:00:20]} 26. Rxb8 {[%emt 0:00:30]} Bxb8 {[%emt 0:00:02]} 27. Kf3 {[%emt 0:00:07]} Rd8 {[%emt 0:00:07]} 28. Ke3 {[%emt 0:00:07]} Ba7+ {[%emt 0:00:09]} 29. Ke2 {[%emt 0:00:04]} Rb8 {[%emt 0:00:42]} 30. b3 {[%emt 0:00:07]} Rb7 {[%emt 0:00:26]} 31. h3 {[%emt 0:00:03]} h5 {[%emt 0:00:16]} 32. g4 {[%emt 0:00:05]} hxg4 {[%emt 0:00:02]} 33. hxg4 {[%emt 0:00:01]} Bb8 {[%emt 0:00:10]} 34. f5 {[%emt 0:00:04]} exf5 {[%emt 0:00:13]} 35. exf5 {[%emt 0:00:11]} Re7+ {[%emt 0:00:43]} 36. Kf3 {[%emt 0:00:10]} g5 {[%emt 0:00:16]} 37. Rc8+ {[%emt 0:00:02]} Kg7 {[%emt 0:00:03]} 38. Rxb8 {[%emt 0:00:04]} Ra7 {[%emt 0:00:21]} 39. Rb6 {[%emt 0:00:33]} a5 {[%emt 0:00:09]} 40. a3 {[%emt 0:00:14]} Rc7 {[%emt 0:00:09]} 41. Ke4 {[%emt 0:00:18]} a4 {[%emt 0:00:42]} 42. bxa4 {[%emt 0:00:30]} Rc4+ {[%emt 0:00:01]} 43. Kf3 {[%emt 0:00:11]} Rxa4 {[%emt 0:00:02]} 44. Rb3 {[%emt 0:00:02]} Kf6 {[%emt 0:00:17]} 45. Re3 {[%emt 0:00:03]} Rf4+ {[%emt 0:00:10]} 46. Kg3 {[%emt 0:00:07]} Ra4 {[%emt 0:00:05]} 47. Kh3 {[%emt 0:00:01]} Rd4 {[%emt 0:00:15]} 48. Kg3 {[%emt 0:00:27]} Rd1 {[%emt 0:00:36]} 49. Rb3 {[%emt 0:00:28]} Rg1+ {[%emt 0:00:26]} 50. Kh3 {[%emt 0:00:03]} Ra1 {[%emt 0:00:05]} 51. Rb6+ {[%emt 0:00:02]} Ke5 {[%emt 0:00:30]} 52. Ra6 {[%emt 0:00:05]} Kf4 {[%emt 0:00:20]} 53. Ra4+ {[%emt 0:00:02]} Kf3 {[%emt 0:00:07]} 54. Kh2 {[%emt 0:00:45]} Ra2+ {[%emt 0:00:15]} 55. Kg1 {[%emt 0:00:04]} Rg2+ {[%emt 0:00:28]} 56. Kf1 {[%emt 0:00:19]} Ra2 {[%emt 0:00:20]} 57. Ke1 {[%emt 0:00:08]} Rg2 {[%emt 0:00:32]} 58. Ra7 {[%emt 0:00:12]} Rxg4 {[%emt 0:00:14]} 59. Rxf7 {[%emt 0:00:01]} Ra4 {[%emt 0:00:06]} 60. f6 {[%emt 0:00:06]} Rxa3 {[%emt 0:00:05]} 61. Rg7 {[%emt 0:00:16]} Ra1+ {[%emt 0:00:26]} 62. Kd2 {[%emt 0:00:01]} Ra2+ {[%emt 0:00:11]} 63. Kc3 {[%emt 0:00:02]} Ra6 {[%emt 0:00:12]} 64. f7 {[%emt 0:00:04]} Rf6 {[%emt 0:00:03]} 65. Kd4 {[%emt 0:00:06]} g4 {[%emt 0:00:02]} 66. Ke5 {[%emt 0:00:04]} Rf4 {[%emt 0:00:06]} 67. Ke6 {[%emt 0:00:05]} g3 {[%emt 0:00:03]} 68. Ke7 {[%emt 0:00:12]} Kf2 $11 {[%emt 0:00:11]} 1/2-1/2

[Event "13th All African Mixed Team Rapid-ch 202"]
[Site "Accra"]
[Date "2024.03.09"]
[Round "4.17"]
[White "Cogan, Nicolas"]
[Black "Pedro Manuel Envo Engonga Avom"]
[Result "1-0"]
[ECO "D31"]
[WhiteElo "2070"]
[BlackElo "1702"]
[Annotator "RC"]
[PlyCount "74"]
[EventDate "2024.03.07"]
[EventType "rapid"]
[EventCountry "GHA"]
[SourceTitle "playchess.com"]
[Source "ChessBase"]
[SourceQuality "1"]
[TimeControl "900+10"]

1. d4 {[%emt 0:00:03]} d5 {[%emt 0:00:07]} 2. c4 {[%emt 0:00:03]} e6 {[%emt 0:00:03]} 3. Nc3 {[%emt 0:00:04]} c6 {[%emt 0:00:03]} 4. Nf3 {[%emt 0:00:39]} Nd7 {[%emt 0:00:03]} 5. e4 {[%emt 0:00:16]} dxe4 {[%emt 0:00:06]} 6. Nxe4 {[%emt 0:00:03]} Ngf6 {[%emt 0:00:03]} 7. Nc3 {[%emt 0:00:43]} Bd6 {[%emt 0:00:23]} 8. Bd3 {[%emt 0:00:17]} Qe7 {[%emt 0:00:07]} 9. O-O {[%emt 0:00:11]} O-O {[%emt 0:00:43]} 10. Re1 {[%emt 0:00:06]} Qd8 {[%emt 0:00:41]} 11. Bg5 {[%emt 0:00:15]} Qc7 {[%emt 0:00:34]} 12. Qc2 {[%emt 0:00:30]} h6 {[%emt 0:00:38]} 13. Bh4 {[%emt 0:00:11]} Re8 {[%emt 0:00:29]} 14. Re2 {[%emt 0:00:52]} b6 {[%emt 0:00:12]} 15. Rae1 {[%emt 0:00:15]} Bb7 {[%emt 0:00:09]} 16. Qd1 {[%emt 0:02:46]} Nh5 {[%emt 0:01:34]} 17. Bb1 {[%emt 0:00:55]} Nf8 {[%emt 0:02:39]} 18. Ne5 {[%emt 0:01:13]} g5 {[%emt 0:00:55]} 19. Bg3 {[%emt 0:00:35]} Nxg3 {[%emt 0:00:03]} 20. hxg3 {[%emt 0:00:11]} Rad8 {[%emt 0:01:57]} 21. Qc2 {[%emt 0:02:08]} Kg7 {[%emt 0:00:36]} 22. Re3 {[%emt 0:01:47]} Bb4 {[%emt 0:02:43]} 23. Qe2 {[%emt 0:03:12]} f6 {[%emt 0:01:14]} 24. Nf3 {[%emt 0:00:44]} g4 {[%emt 0:00:11]} 25. Nh4 {[%emt 0:00:33]} Rxd4 {[%emt 0:00:30]} 26. Nf5+ {[%emt 0:00:10]} exf5 {[%emt 0:01:16]} 27. Rxe8 {[%emt 0:00:01]} Qd7 {[%emt 0:00:36]} 28. a3 {[%emt 0:00:36]} Bc5 {[%emt 0:00:16]} 29. Qf1 {[%emt 0:00:29]} Rd2 {[%emt 0:00:25]} 30. R8e2 {[%emt 0:00:03]} Rd4 {[%emt 0:00:07]} 31. Rd1 {[%emt 0:00:05]} Ba6 {[%emt 0:00:19]} 32. b3 {[%emt 0:00:20]} Bxa3 {[%emt 0:00:03]} 33. Qe1 {[%emt 0:00:10]} Bb4 {[%emt 0:00:13]} 34. Rc1 {[%emt 0:00:11]} Kg6 {[%emt 0:00:16]} 35. Re3 {[%emt 0:00:11]} Rd2 {[%emt 0:00:28]} 36. Rd1 {[%emt 0:00:11]} Bxc3 {[%emt 0:00:12]} 37. Rxd2 {[%emt 0:00:10]} Qxd2 {[%emt 0:00:26]} 1-0

[Event "13th All African Mixed Team Rapid-ch 202"]
[Site "Accra"]
[Date "2024.03.09"]
[Round "5.1"]
[White "Amin, Bassem"]
[Black "Arab, Adlane"]
[Result "1-0"]
[ECO "A08"]
[WhiteElo "2670"]
[BlackElo "2477"]
[Annotator "TA"]
[PlyCount "55"]
[EventDate "2024.03.07"]
[EventType "rapid"]
[EventCountry "GHA"]
[SourceTitle "playchess.com"]
[Source "ChessBase"]
[SourceQuality "1"]
[TimeControl "900+10"]

{[%evp 17,55,16,31,19,47,34,20,19,43,20,28,23,22,0,36,35,87,92,93,95,90,87,102,85,139,160,155,156,232,234,514,506,532,508,531,538,530,530,527,502]} 1. e4 {[%emt 0:00:03]} c5 {[%emt 0:00:01]} 2. Nf3 {[%emt 0:00:02]} e6 {[%emt 0:00:02]} 3. d3 {[%emt 0:00:05]} Nc6 {[%emt 0:00:03]} 4. g3 {[%emt 0:00:01]} d5 {[%emt 0:00:24]} 5. Nbd2 {[%emt 0:00:02]} Bd6 {[%emt 0:00:05]} 6. Bg2 {[%emt 0:00:04]} Nge7 {[%emt 0:00:03]} 7. O-O {[%emt 0:00:04]} O-O {[%emt 0:00:05]} 8. Re1 {[%emt 0:00:02]} Qc7 {[%emt 0:00:09]} 9. c3 {[%emt 0:00:49]} Bd7 {[%emt 0:00:26]} 10. a3 {[%emt 0:00:35]} b5 {[%emt 0:00:32]} 11. d4 {[%emt 0:00:36]} cxd4 {[%emt 0:00:54]} 12. cxd4 {[%emt 0:00:02] [#] Strongly threatening e5. The position is equal.} Qd8 {[%emt 0:00:19]} 13. e5 {[%emt 0:00:35]} Bc7 {[%emt 0:00:01]} 14. Nb3 {[%emt 0:00:25]} Bb6 {[%emt 0:00:23]} 15. Bf1 {[%emt 0:00:16][%cal Ob3c5,Bg2f1,Bf1d3,Bd3f5][%mdl 32]} Nf5 {[%emt 0:01:04]} (15... a5 $5) 16. Bg5 {[%emt 0:00:05]} ({Much worse is} 16. Bxb5 Nxe5 17. dxe5 Bxb5 $15) 16... f6 {[%emt 0:00:24]} (16... Qe8 $14) 17. exf6 $16 {[%emt 0:00:03]} gxf6 {[%emt 0:00:02]} 18. Bf4 {[%emt 0:00:01]} Nce7 {[%emt 0:00:32]} 19. Bd3 {[%emt 0:00:34]} Ng6 {[%emt 0:01:13]} 20. Bxf5 {[%emt 0:03:25]} Nxf4 {[%emt 0:01:43]} (20... exf5 $142 21. Qc1 Re8) 21. Qd2 {[%emt 0:00:01]} Bc7 {[%emt 0:02:10]} 22. Bc2 {[%emt 0:00:31] White is more active.} Ng6 {[%emt 0:00:10]} (22... Nh3+ $16 {might work better.} 23. Kg2 e5) 23. Nc5 $18 {[%emt 0:00:48]} Kf7 $2 {[%emt 0:00:43]} (23... Re8 24. Bxg6 (24. Qh6 Nf8 $18) 24... hxg6) 24. Qh6 {[%emt 0:01:45] White is clearly winning.} Rh8 {[%emt 0:00:15]} 25. Re3 {[%emt 0:00:06] [#] And now Rae1 would win.} Bd6 {[%emt 0:00:34]} 26. Nb7 {[%emt 0:00:21][%csl LRd6,LRd8] Excellent horsemanship.} Qf8 {[%emt 0:02:14]} 27. Nxd6+ {[%emt 0:00:03]} Qxd6 {[%emt 0:00:03]} 28. Bxg6+ {[%emt 0:00:08] Weighted Error Value: White=0.04 (flawless) /Black=0.33.  Mistake:       	---       	Black=4      Inaccurate:     	---       	Black=2      OK:         	White=11    	Black=5      Best:        	White=1     	---} 1-0

[Event "13th All African Mixed Team Rapid-ch 202"]
[Site "Accra"]
[Date "2024.03.09"]
[Round "5.2"]
[White "Nassr, Lina"]
[Black "Wafa, Shahenda"]
[Result "1-0"]
[ECO "A48"]
[WhiteElo "2080"]
[BlackElo "2083"]
[Annotator "NA RC"]
[PlyCount "123"]
[EventDate "2024.03.07"]
[EventType "rapid"]
[EventCountry "GHA"]
[SourceTitle "playchess.com"]
[Source "ChessBase"]
[SourceQuality "1"]
[TimeControl "900+10"]

1. d4 {[%emt 0:00:03]} Nf6 {[%emt 0:00:02]} 2. Nf3 {[%emt 0:00:01]} g6 {[%emt 0:00:04]} 3. e3 {[%emt 0:00:09]} Bg7 {[%emt 0:00:07]} 4. Be2 {[%emt 0:00:02]} c5 {[%emt 0:00:25]} 5. O-O {[%emt 0:00:26]} O-O {[%emt 0:00:27]} 6. dxc5 {[%emt 0:00:09]} Qa5 {[%emt 0:01:54]} 7. a3 {[%emt 0:00:23]} Qxc5 {[%emt 0:00:07]} 8. b4 {[%emt 0:00:02]} Qc7 {[%emt 0:00:05]} 9. Bb2 {[%emt 0:00:01]} d6 {[%emt 0:00:26]} 10. c4 {[%emt 0:00:42]} Be6 {[%emt 0:00:21]} 11. Nbd2 {[%emt 0:00:37]} Nc6 {[%emt 0:00:22]} 12. Rc1 {[%emt 0:01:28]} Rac8 {[%emt 0:01:40]} 13. Nb3 {[%emt 0:01:45]} a6 {[%emt 0:01:29]} 14. Nbd4 {[%emt 0:02:04]} Bd7 {[%emt 0:01:19]} 15. Qb3 {[%emt 0:00:57]} Ng4 {[%emt 0:01:59]} 16. Nxc6 {[%emt 0:02:11]} bxc6 {[%emt 0:01:04]} 17. Bxg7 {[%emt 0:00:52]} Kxg7 {[%emt 0:00:01]} 18. Qc3+ {[%emt 0:00:15]} Kg8 {[%emt 0:00:27]} 19. c5 {[%emt 0:00:45]} Ra8 {[%emt 0:00:25]} 20. h3 {[%emt 0:00:31]} Nf6 {[%emt 0:00:30]} 21. cxd6 {[%emt 0:00:04]} Qxd6 {[%emt 0:00:03]} 22. Rfd1 {[%emt 0:00:15]} Qc7 {[%emt 0:01:17]} 23. Ne5 {[%emt 0:00:23]} Rfc8 {[%emt 0:01:13]} 24. Bf3 {[%emt 0:01:18]} Ra7 {[%emt 0:00:43]} 25. Nxd7 {[%emt 0:00:25]} Nxd7 {[%emt 0:00:04]} 26. Qxc6 {[%emt 0:00:41]} Qxc6 {[%emt 0:00:18]} 27. Rxc6 {[%emt 0:00:08]} Rxc6 {[%emt 0:00:13]} 28. Bxc6 {[%emt 0:00:02]} Ne5 {[%emt 0:00:10]} 29. Be4 {[%emt 0:00:37]} Nc4 {[%emt 0:00:28]} 30. Rd3 {[%emt 0:00:22]} Nd6 {[%emt 0:00:26]} 31. Bf3 {[%emt 0:00:38]} Rc7 {[%emt 0:00:06]} 32. Rb3 {[%emt 0:00:18]} Rc1+ {[%emt 0:00:09]} 33. Kh2 {[%emt 0:00:01]} Nc4 {[%emt 0:00:38]} 34. Be2 {[%emt 0:00:30]} Kf8 {[%emt 0:01:07]} 35. a4 {[%emt 0:00:44]} Ke8 {[%emt 0:00:13]} 36. b5 {[%emt 0:00:40]} axb5 {[%emt 0:00:02]} 37. Rxb5 {[%emt 0:00:24]} Nd6 {[%emt 0:00:33]} 38. Rb3 {[%emt 0:00:15]} Ra1 {[%emt 0:00:06]} 39. Rb4 {[%emt 0:00:11]} Ra2 {[%emt 0:00:04]} 40. Bb5+ {[%emt 0:00:12]} Kd8 {[%emt 0:00:20]} 41. f3 {[%emt 0:00:05]} Kc7 {[%emt 0:00:07]} 42. e4 {[%emt 0:00:07]} h5 {[%emt 0:00:21]} 43. Kg3 {[%emt 0:00:06]} h4+ {[%emt 0:00:11]} 44. Kh2 {[%emt 0:00:01]} g5 {[%emt 0:00:05]} 45. Bd3 {[%emt 0:00:21]} f6 {[%emt 0:00:05]} 46. Bb5 {[%emt 0:00:13]} Ra3 {[%emt 0:00:17]} 47. Rb1 {[%emt 0:00:04]} Ra2 {[%emt 0:00:16]} 48. Rc1+ {[%emt 0:00:01]} Kb6 {[%emt 0:00:04]} 49. Rc6+ {[%emt 0:00:06]} Kb7 {[%emt 0:00:02]} 50. Rc5 {[%emt 0:00:12]} Rb2 {[%emt 0:00:02]} 51. e5 {[%emt 0:00:08]} Nf7 {[%emt 0:00:13]} 52. exf6 {[%emt 0:00:06]} exf6 {[%emt 0:00:01]} 53. Rc6 {[%emt 0:00:37]} f5 {[%emt 0:00:01]} 54. Rf6 {[%emt 0:00:02]} Ne5 {[%emt 0:00:26]} 55. Rxf5 {[%emt 0:00:02]} Ng6 {[%emt 0:00:05]} 56. Rxg5 {[%emt 0:00:48]} Nf4 {[%emt 0:00:14]} 57. Rg4 {[%emt 0:00:00]} Rb4 {[%emt 0:00:07]} 58. Rxh4 {[%emt 0:00:00]} Kb6 {[%emt 0:00:20]} 59. Rg4 {[%emt 0:00:00]} Kc5 {[%emt 0:00:07]} 60. h4 {[%emt 0:00:00]} Kd6 {[%emt 0:00:06]} 61. h5 {[%emt 0:00:00]} Ke5 {[%emt 0:00:05]} 62. h6 {[%emt 0:00:12]} 1-0